fUST/lending_fUST_20251221
["ID","MTS","AMOUNT","RATE_DAILY","PERIOD"]
[399323474,1766302252793,-500.0,0.00013698,2]
[399323475,1766302252802,-209.65523059,0.00013698,2]
[399323476,1766302252812,-235.60989908,0.00013698,2]
[399323477,1766302252821,-500.0,0.00013698,2]
[399323478,1766302252831,-500.0,0.00013698,2]
[399323479,1766302252841,-528.6115662,0.00013698,2]
[399323480,1766302252850,-500.0,0.00013698,2]
[399323481,1766302252860,-500.0,0.00013698,2]
[399323482,1766302252870,-500.0,0.00013698,2]
[399323483,1766302252879,-593.24933394,0.00013698,2]
[399323484,1766302252888,-500.0,0.00013698,2]
[399323485,1766302252898,-500.0,0.00013698,2]
[399323486,1766302252908,-500.0,0.00013698,2]
[399323487,1766302252918,-500.0,0.00013698,2]
[399323488,1766302252927,-500.0,0.00013698,2]
[399323489,1766302252936,-550.50803095,0.00013698,2]
[399323490,1766302252946,-500.0,0.00013698,2]
[399323491,1766302252956,-500.0,0.00013698,2]
[399323492,1766302252965,-505.87752958,0.00013698,2]
[399323493,1766302252974,-339.98,0.00013698,2]
[399323494,1766302252984,-500.0,0.00013698,2]
[399323495,1766302252994,-362.84,0.00013698,2]
[399323496,1766302253006,-249.60175748,0.00013698,2]
[399323497,1766302253016,-500.0,0.00013698,2]
[399323498,1766302253026,-500.0,0.00013698,2]
[399323499,1766302253036,-500.0,0.00013698,2]
[399323500,1766302253046,-500.0,0.00013698,2]
[399323501,1766302253055,-500.0,0.00013698,2]
[399323502,1766302253065,-500.0,0.00013698,2]
[399323503,1766302253075,-474.18,0.00013698,2]
[399323504,1766302253084,-500.0,0.00013698,2]
[399323505,1766302253095,-500.0,0.00013698,2]
[399323506,1766302253105,-500.0,0.00013698,2]
[399323507,1766302253115,-500.0,0.00013698,2]
[399323508,1766302253124,-500.0,0.00013698,2]
[399323509,1766302253133,-500.0,0.00013698,2]
[399323510,1766302253143,-500.0,0.00013698,2]
[399323511,1766302253152,-554.36394736,0.00013698,2]
[399323512,1766302253163,-500.0,0.00013698,2]
[399323513,1766302253173,-500.0,0.00013698,2]
[399323514,1766302253183,-532.96268676,0.00013698,2]
[399323515,1766302253192,-504.91269952,0.00013698,2]
[399323516,1766302253202,-503.65372294,0.00013698,2]
[399323517,1766302253212,-510.00081651,0.00013698,2]
[399323518,1766302253223,-500.0,0.00013698,2]
[399323519,1766302253233,-500.0,0.00013698,2]
[399323520,1766302253242,-638.84181886,0.00013698,2]
[399323521,1766302253252,-12548.4108932,0.00013699,2]
[399323522,1766302253261,-4012.167395,0.00013699,2]
[399323523,1766302253270,-1000.0,0.00013699,2]
[399323524,1766302253280,-849.485914,0.00013699,2]
[399323525,1766302253290,-151.0,0.00013699,2]
[399323526,1766302253300,-151.0,0.00013699,2]
[399323527,1766302253309,-151.0,0.00013699,2]
[399323528,1766302253319,-151.0,0.00013699,2]
[399323529,1766302253329,-151.0,0.00013699,2]
[399323530,1766302253344,-151.0,0.00013699,2]
[399323531,1766302253354,-151.0,0.00013699,2]
[399323532,1766302253364,-151.0,0.00013699,2]
[399323533,1766302253373,-151.0,0.00013699,2]
[399323534,1766302253383,-151.0,0.00013699,2]
[399323535,1766302253393,-151.0,0.00013699,2]
[399323536,1766302253403,-151.0,0.00013699,2]
[399323537,1766302253413,-151.0,0.00013699,2]
[399323538,1766302253423,-151.0,0.00013699,2]
[399323539,1766302253433,-151.0,0.00013699,2]
[399323540,1766302253443,-151.0,0.00013699,2]
[399323541,1766302253453,-151.0,0.00013699,2]
[399323542,1766302253555,-151.0,0.00013699,2]
[399323543,1766302253565,-295.459514,0.00013699,2]
[399323544,1766302253574,-151.0,0.00013699,2]
[399323545,1766302253584,-151.0,0.00013699,2]
[399323546,1766302253593,-151.0,0.00013699,2]
[399323547,1766302253603,-151.0,0.00013699,2]
[399323548,1766302253612,-151.0,0.00013699,2]
[399323549,1766302253621,-151.0,0.00013699,2]
[399323550,1766302253637,-151.0,0.00013699,2]
[399323551,1766302253651,-151.0,0.00013699,2]
[399323552,1766302253660,-151.0,0.00013699,2]
[399323553,1766302253670,-151.0,0.00013699,2]
[399323554,1766302253679,-151.0,0.00013699,2]
[399323555,1766302253690,-246.113635,0.00013699,2]
[399323556,1766302253699,-500.0,0.00013699,2]
[399323557,1766302253709,-500.0,0.00013699,2]
[399323558,1766302253718,-500.0,0.00013699,2]
[399323559,1766302253729,-500.0,0.00013699,2]
[399323560,1766302253741,-500.0,0.00013699,2]
[399323561,1766302253751,-186.9683005,0.00013699,2]
[399323562,1766302253761,-500.0,0.00013699,2]
[399323563,1766302253771,-500.0,0.00013699,2]
[399323564,1766302253780,-540.07248979,0.00013699,2]
[399323565,1766302253790,-500.0,0.00013699,2]
[399323566,1766302253801,-500.0,0.00013699,2]
[399323567,1766302253811,-500.0,0.00013699,2]
[399323568,1766302253820,-500.0,0.00013699,2]
[399323569,1766302253830,-500.0,0.00013699,2]
[399323570,1766302253839,-421.53283848,0.00013699,2]
[399323571,1766302253849,-500.0,0.00013699,2]
[399323572,1766302253859,-211.08001947,0.00013699,2]
[399323573,1766302253869,-500.0,0.00013699,2]
[399323574,1766302253879,-500.0,0.00013699,2]
[399323575,1766302253889,-260.0,0.00013699,2]
[399323576,1766302253899,-377.38540046,0.00013699,2]
[399323577,1766302253909,-500.0,0.00013699,2]
[399323578,1766302253919,-500.0,0.00013699,2]
[399323579,1766302253929,-500.0,0.00013699,2]
[399323580,1766302253938,-500.0,0.00013699,2]
[399323581,1766302253948,-500.0,0.00013699,2]
[399323582,1766302253958,-500.0,0.00013699,2]
[399323583,1766302253967,-500.0,0.00013699,2]
[399323584,1766302253980,-500.0,0.00013699,2]
[399323585,1766302253990,-500.0,0.00013699,2]
[399323586,1766302254000,-500.64380598,0.00013699,2]
[399323587,1766302254010,-500.0,0.00013699,2]
[399323588,1766302254020,-500.0,0.00013699,2]
[399323589,1766302254031,-500.0,0.00013699,2]
[399323590,1766302254040,-500.0,0.00013699,2]
[399323591,1766302254050,-500.0,0.00013699,2]
[399323592,1766302254060,-500.0,0.00013699,2]
[399323593,1766302254070,-500.0,0.00013699,2]
[399323594,1766302254079,-500.0,0.00013699,2]
[399323595,1766302254089,-500.0,0.00013699,2]
[399323596,1766302254100,-500.0,0.00013699,2]
[399323597,1766302254111,-500.0,0.00013699,2]
[399323598,1766302254121,-500.0,0.00013699,2]
[399323599,1766302254131,-500.0,0.00013699,2]
[399323600,1766302254141,-629.34461674,0.00013699,2]
[399323601,1766302254150,-439.03572678,0.00013699,2]
[399323602,1766302254160,-500.0,0.00013699,2]
[399323603,1766302254169,-500.0,0.00013699,2]
[399323604,1766302254179,-500.0,0.00013699,2]
[399323605,1766302254188,-500.66805125,0.00013699,2]
[399323606,1766302254198,-2000.0,0.00013699,7]
[399323607,1766302254208,-500.0,0.00013699,2]
[399323608,1766302254217,-500.0,0.00013699,2]
[399323609,1766302254227,-185.40408976,0.00013699,2]
[399323610,1766302254236,-500.16869319,0.00013699,2]
[399323611,1766302254246,-500.0,0.00013699,2]
[399323612,1766302254255,-500.0,0.00013699,2]
[399323613,1766302254264,-500.0,0.00013699,2]
[399323614,1766302254273,-500.0,0.00013699,2]
[399323615,1766302254283,-598.27415341,0.00013699,2]
[399323616,1766302254292,-500.55756047,0.00013699,2]
[399323617,1766302254303,-500.0,0.00013699,2]
[399323618,1766302254312,-500.0,0.00013699,2]
[399323619,1766302254322,-500.0,0.00013699,2]
[399323620,1766302254331,-500.0,0.00013699,2]
[399323621,1766302254340,-500.0,0.00013699,2]
[399323622,1766302254350,-500.0,0.00013699,2]
[399323623,1766302254359,-501.0,0.00013699,2]
[399323624,1766302254369,-160.0,0.00013699,2]
[399323625,1766302254378,-3988.07939636,0.00013778,5]
[399323626,1766302254388,-314.54726531,0.00013821,2]
[399323627,1766302254398,-1000.0,0.00013821,2]
[399323628,1766302254407,-1000.0,0.00013821,2]
[399323629,1766302254416,-549.90356021,0.00013821,2]
[399323630,1766302254425,-1000.0,0.00013821,2]
[399323631,1766302254434,-1000.0,0.00013821,2]
[399323632,1766302254444,-1000.0,0.00013821,2]
[399323633,1766302254453,-1000.0,0.00013821,2]
[399323634,1766302254463,-1000.0,0.00013821,2]
[399323635,1766302254471,-175.59637159,0.00013821,2]
[399323636,1766302254481,-1000.0,0.00013821,2]
[399323637,1766302254490,-1000.0,0.00013821,2]
[399323638,1766302254499,-1000.0,0.00013821,2]
[399323639,1766302254508,-1000.0,0.00013821,2]
[399323640,1766302254520,-1000.0,0.00013821,2]
[399323641,1766302254531,-1000.0,0.00013821,2]
[399323642,1766302254543,-896.02895101,0.00013821,2]
[399323643,1766302254553,-1000.0,0.00013821,2]
[399323644,1766302254563,-1000.0,0.00013821,2]
[399323645,1766302254572,-1000.0,0.00013821,2]
[399323646,1766302254584,-1000.0,0.00013821,2]
[399323647,1766302254593,-1000.0,0.00013821,2]
[399323648,1766302254603,-1000.0,0.00013821,2]
[399323649,1766302254613,-1000.0,0.00013821,2]
[399323650,1766302254622,-1000.0,0.00013821,2]
[399323651,1766302254632,-1000.0,0.00013821,2]
[399323652,1766302254641,-1000.0,0.00013821,2]
[399323653,1766302254651,-1000.0,0.00013821,2]
[399323654,1766302254660,-1000.0,0.00013821,2]
[399323655,1766302254669,-1000.0,0.00013821,2]
[399323656,1766302254678,-1000.0,0.00013821,2]
[399323657,1766302254687,-210.29022267,0.00013821,2]
[399323658,1766302254696,-1000.0,0.00013821,2]
[399323659,1766302254706,-1000.0,0.00013821,2]
[399323660,1766302254715,-503.35723734,0.00013821,2]
[399323661,1766302254724,-1000.0,0.00013821,2]
[399323662,1766302254736,-1000.0,0.00013821,2]
[399323663,1766302254745,-1000.0,0.00013821,2]
[399323664,1766302254755,-1000.0,0.00013821,2]
[399323665,1766302254764,-1000.0,0.00013821,2]
[399323666,1766302254774,-1000.0,0.00013821,2]
[399323667,1766302254784,-1000.0,0.00013821,2]
[399323668,1766302254793,-501.0,0.00013836,2]
[399323669,1766302254803,-501.0,0.00013973,2]
[399323670,1766302254812,-3000.0,0.00014,2]
[399323671,1766302254822,-218.05629258,0.00014,2]
[399323672,1766302254831,-811.22956092,0.00014,2]
[399323673,1766302254841,-811.22956092,0.00014,2]
[399323674,1766302254850,-505.4,0.00014,2]
[399323675,1766302254859,-500.0,0.00014,2]
[399323676,1766302254868,-12146.21,0.00014047,2]
[399323677,1766302254878,-767.7842514,0.00014067,2]
[399323678,1766302254888,-501.0,0.0001411,2]
[399323679,1766302254898,-1000.0,0.00014136,2]
[399323680,1766302254908,-172.5072952,0.00014175,2]
[399323681,1766302254917,-600.0,0.00014221,2]
[399323682,1766302254927,-500.0,0.00014242,2]
[399323683,1766302254936,-1000.0,0.00014247,2]
[399323684,1766302254945,-1000.0,0.00014247,2]
[399323685,1766302254955,-520.9365729,0.00014247,2]
[399323686,1766302254964,-1000.0,0.00014247,2]
[399323687,1766302254973,-1109.98075944,0.00014247,2]
[399323688,1766302254982,-732.61988605,0.00014247,2]
[399323689,1766302254992,-1000.0,0.00014247,2]
[399323690,1766302255002,-500.41680588,0.00014247,2]
[399323691,1766302255011,-1000.0,0.00014247,2]
[399323692,1766302255020,-1000.0,0.00014247,2]
[399323693,1766302255030,-1000.0,0.00014247,2]
[399323694,1766302255039,-1000.0,0.00014247,2]
[399323695,1766302255048,-1000.0,0.00014247,2]
[399323696,1766302255057,-1000.0,0.00014247,2]
[399323697,1766302255067,-1000.0,0.00014247,2]
[399323698,1766302255077,-467.43248338,0.00014247,2]
[399323699,1766302255086,-1000.0,0.00014247,2]
[399323700,1766302255096,-1000.0,0.00014247,2]
[399323701,1766302255106,-1000.0,0.00014247,2]
[399323702,1766302255116,-1000.0,0.00014247,2]
[399323703,1766302255126,-550.28605479,0.00014247,2]
[399323704,1766302255135,-1000.0,0.00014247,2]
[399323705,1766302255145,-1001.33145074,0.00014247,2]
[399323706,1766302255154,-1000.0,0.00014247,2]
[399323707,1766302255163,-1000.35964076,0.00014247,2]
[399323708,1766302255172,-400.44553674,0.00014247,2]
[399323709,1766302255182,-1000.0,0.00014247,2]
[399323710,1766302255191,-1000.0,0.00014247,2]
[399323711,1766302255200,-1000.0,0.00014247,2]
[399323712,1766302255210,-1000.0,0.00014247,2]
[399323713,1766302255219,-1149.18058201,0.00014247,2]
[399323714,1766302255228,-501.06742431,0.00014247,2]
[399323715,1766302255238,-1000.0,0.00014247,2]
[399323716,1766302255248,-1000.0,0.00014247,2]
[399323717,1766302255257,-1000.0,0.00014247,2]
[399323718,1766302255268,-501.90291112,0.00014247,2]
[399323719,1766302255277,-1000.78559204,0.00014247,2]
[399323720,1766302255287,-1000.0,0.00014247,2]
[399323721,1766302255297,-871.24843221,0.00014247,2]
[399323722,1766302255307,-1000.0,0.00014247,2]
[399323723,1766302255316,-1000.0,0.00014247,2]
[399323724,1766302255326,-1000.0,0.00014247,2]
[399323725,1766302255335,-1000.0,0.00014247,2]
[399323726,1766302255345,-1000.0,0.00014247,2]
[399323727,1766302255354,-1000.0,0.00014247,2]
[399323728,1766302255363,-1006.60858114,0.00014247,2]
[399323729,1766302255372,-1000.0,0.00014247,2]
[399323730,1766302255382,-1000.0,0.00014247,2]
[399323731,1766302255391,-1000.0,0.00014247,2]
[399323732,1766302255400,-163.33345373,0.00014247,2]
[399323733,1766302255410,-1000.0,0.00014247,2]
[399323734,1766302255419,-1000.0,0.00014247,2]
[399323735,1766302255427,-501.0,0.00014247,2]
[399323736,1766302255437,-260.0,0.00014247,2]
[399323737,1766302255446,-1500.0,0.00014368,2]
[399323738,1766302255455,-1500.0,0.00014368,2]
[399323739,1766302255464,-1500.0,0.00014368,2]
[399323740,1766302255473,-1500.0,0.00014368,2]
[399323741,1766302255482,-1030.41147332,0.00014368,2]
[399323742,1766302255492,-1500.0,0.00014368,2]
[399323743,1766302255501,-1500.0,0.00014368,2]
[399323744,1766302255511,-1500.0,0.00014368,2]
[399323745,1766302255520,-1135.68704384,0.00014368,2]
[399323746,1766302255529,-1500.0,0.00014368,2]
[399323747,1766302255539,-1500.0,0.00014368,2]
[399323748,1766302255548,-1500.0,0.00014368,2]
[399323749,1766302255557,-1500.0,0.00014368,2]
[399323750,1766302255566,-1500.0,0.00014368,2]
[399323751,1766302255575,-1500.0,0.00014368,2]
[399323752,1766302255585,-1389.6955786,0.00014368,2]
[399323753,1766302255594,-1500.0,0.00014368,2]
[399323754,1766302255603,-1500.0,0.00014368,2]
[399323755,1766302255612,-1500.0,0.00014368,2]
[399323756,1766302255622,-1500.0,0.00014368,2]
[399323757,1766302255631,-1500.0,0.00014368,2]
[399323758,1766302255641,-1500.0,0.00014368,2]
[399323759,1766302255650,-1500.0,0.00014368,2]
[399323760,1766302255660,-1500.0,0.00014368,2]
[399323761,1766302255669,-1500.0,0.00014368,2]
[399323762,1766302255678,-1500.0,0.00014368,2]
[399323763,1766302255686,-1500.0,0.00014368,2]
[399323764,1766302255695,-1500.0,0.00014368,2]
[399323765,1766302255704,-1500.0,0.00014368,2]
[399323766,1766302255714,-324.33877311,0.00014368,2]
[399323767,1766302255723,-1500.0,0.00014368,2]
[399323768,1766302255734,-1500.0,0.00014368,2]
[399323769,1766302255743,-971.90087353,0.00014368,2]
[399323770,1766302255753,-1500.0,0.00014368,2]
[399323771,1766302255762,-1500.0,0.00014368,2]
[399323772,1766302255771,-1500.0,0.00014368,2]
[399323773,1766302255780,-501.0,0.00014384,2]
[399323774,1766302255790,-1860.31620952,0.00014387,2]
[399323775,1766302255800,-2970.77382927,0.00014402,2]
[399323776,1766302255809,-151.0,0.000145,2]
[399323777,1766302255818,-2000.0,0.00014514,7]
[399323778,1766302255828,-501.0,0.00014521,2]
[399323779,1766302255837,-327.86896061,0.00014547,2]
[399323780,1766302255846,-796.19226871,0.00014615,2]
[399323781,1766302255855,-501.0,0.00014658,2]
[399323782,1766302255864,-168.0,0.000147,2]
[399323783,1766302255874,-900.0,0.00014768,2]
[399323784,1766302255883,-1500.0,0.00014795,2]
[399323785,1766302255892,-1593.86589786,0.00014795,2]
[399323786,1766302255901,-1500.0,0.00014795,2]
[399323787,1766302255910,-1500.0,0.00014795,2]
[399323788,1766302255920,-498.64672858,0.00014795,2]
[399323789,1766302255929,-1500.0,0.00014795,2]
[399323790,1766302255938,-1500.0,0.00014795,2]
[399323791,1766302255947,-458.13934182,0.00014795,2]
[399323792,1766302255956,-1500.0,0.00014795,2]
[399323793,1766302255965,-1500.0,0.00014795,2]
[399323794,1766302255974,-505.16314018,0.00014795,2]
[399323795,1766302255984,-1500.0,0.00014795,2]
[399323796,1766302255993,-1004.88356841,0.00014795,2]
[399323797,1766302256003,-1630.57816555,0.00014795,2]
[399323798,1766302256012,-1500.0,0.00014795,2]
[399323799,1766302256021,-959.45734218,0.00014795,2]
[399323800,1766302256031,-919.81865669,0.00014795,2]
[399323801,1766302256039,-1515.36290525,0.00014795,2]
[399323802,1766302256049,-1500.0,0.00014795,2]
[399323803,1766302256059,-1500.0,0.00014795,2]
[399323804,1766302256068,-1500.0,0.00014795,2]
[399323805,1766302256080,-1500.0,0.00014795,2]
[399323806,1766302256089,-789.16006563,0.00014795,2]
[399323807,1766302256099,-1272.07326162,0.00014795,2]
[399323808,1766302256108,-501.59941356,0.00014795,2]
[399323809,1766302256117,-1500.0,0.00014795,2]
[399323810,1766302256128,-1284.38571266,0.00014795,2]
[399323811,1766302256137,-1500.0,0.00014795,2]
[399323812,1766302256147,-371.94205776,0.00014795,2]
[399323813,1766302256157,-1500.0,0.00014795,2]
[399323814,1766302256166,-503.92251366,0.00014795,2]
[399323815,1766302256176,-1500.0,0.00014795,2]
[399323816,1766302256186,-1500.0,0.00014795,2]
[399323817,1766302256196,-1500.0,0.00014795,2]
[399323818,1766302256206,-1500.0,0.00014795,2]
[399323819,1766302256216,-911.7561877,0.00014795,2]
[399323820,1766302256225,-192.8149694,0.00014795,2]
[399323821,1766302256235,-192.8149694,0.00014795,2]
[399323822,1766302256245,-192.8149694,0.00014795,2]
[399323823,1766302256255,-192.8149694,0.00014795,2]
[399323824,1766302256265,-192.8149694,0.00014795,2]
[399323825,1766302256275,-192.8149694,0.00014795,2]
[399323826,1766302256285,-192.8149694,0.00014795,2]
[399323827,1766302256295,-192.8149694,0.00014795,2]
[399323828,1766302256305,-501.0,0.00014795,2]
[399323829,1766302256315,-360.0,0.00014795,2]
[399323830,1766302256325,-5000.0,0.00014843,2]
[399323831,1766302256335,-5000.0,0.00014843,2]
[399323832,1766302256344,-5000.0,0.00014843,2]
[399323833,1766302256354,-5000.0,0.00014843,2]
[399323834,1766302256364,-7468.19938633,0.00014852,2]
[399323835,1766302256373,-13881.39,0.00014873,2]
[399323836,1766302256383,-593.43873924,0.000149,2]
[399323837,1766302256393,-601.60955947,0.00014916,2]
[399323838,1766302256403,-2000.0,0.00014916,2]
[399323839,1766302256413,-1204.31186927,0.00014916,2]
[399323840,1766302256423,-1193.97105568,0.00014916,2]
[399323841,1766302256433,-1162.13295191,0.00014916,2]
[399323842,1766302256443,-2000.0,0.00014916,2]
[399323843,1766302256452,-2136.29274073,0.00014916,2]
[399323844,1766302256462,-2000.0,0.00014916,2]
[399323845,1766302256472,-2000.0,0.00014916,2]
[399323846,1766302256487,-2000.0,0.00014916,2]
[399323847,1766302256498,-2000.0,0.00014916,2]
[399323848,1766302256508,-2000.0,0.00014916,2]
[399323849,1766302256519,-506.12758304,0.00014916,2]
[399323850,1766302256529,-387.83240735,0.00014916,2]
[399323851,1766302256539,-2000.0,0.00014916,2]
[399323852,1766302256549,-824.97394198,0.00014916,2]
[399323853,1766302256560,-2000.0,0.00014916,2]
[399323854,1766302256570,-1197.71011259,0.00014916,2]
[399323855,1766302256580,-1466.44689546,0.00014916,2]
[399323856,1766302256591,-2000.0,0.00014916,2]
[399323857,1766302256602,-2000.0,0.00014916,2]
[399323858,1766302256613,-2000.0,0.00014916,2]
[399323859,1766302256623,-2000.0,0.00014916,2]
[399323860,1766302256633,-888.5753766,0.00014916,2]
[399323861,1766302256644,-2000.0,0.00014916,2]
[399323862,1766302256655,-2000.0,0.00014916,2]
[399323863,1766302256665,-2000.0,0.00014916,2]
[399323864,1766302256675,-699.50463811,0.00014916,2]
[399323865,1766302256686,-2000.0,0.00014916,2]
[399323866,1766302256696,-2000.0,0.00014916,2]
[399323867,1766302256706,-1016.38350836,0.00014916,2]
[399323868,1766302256717,-501.0,0.00014932,2]
[399323869,1766302256727,-500.0,0.00014954,2]
[399323870,1766302256741,-1016.29155399,0.00015,2]
[399323871,1766302256752,-1000.0,0.00015,2]
[399323872,1766302256762,-26621.6256219,0.00015,2]
[399323873,1766302256772,-4464.0,0.00015,2]
[399323874,1766302256784,-165.336142,0.00015068,2]
[399323875,1766302256794,-800.0,0.00015068,2]
[399323876,1766302256805,-501.0,0.00015069,2]
[399323877,1766302256816,-5487.84563124,0.00015085,2]
[399323878,1766302256827,-825.65138265,0.00015163,2]
[399323879,1766302256837,-5000.0,0.000152,2]
[399323880,1766302256847,-3988.07939636,0.00015203,7]
[399323881,1766302256858,-501.0,0.00015206,2]
[399323882,1766302256869,-330.41264264,0.00015224,2]
[399323883,1766302256879,-1200.0,0.00015316,2]
[399323884,1766302256890,-2000.0,0.00015329,7]
[399323885,1766302256900,-460.0,0.00015342,2]
[399323886,1766302256910,-511.75147279,0.00015342,2]
[399323887,1766302256920,-2001.2830654,0.00015342,2]
[399323888,1766302256930,-1618.12400628,0.00015342,2]
[399323889,1766302256940,-2000.0,0.00015342,2]
[399323890,1766302256950,-1146.43911825,0.00015342,2]
[399323891,1766302256960,-2000.0,0.00015342,2]
[399323892,1766302256970,-2000.0,0.00015342,2]
[399323893,1766302256980,-2000.0,0.00015342,2]
[399323894,1766302256990,-2000.0,0.00015342,2]
[399323895,1766302257001,-1938.44739054,0.00015342,2]
[399323896,1766302257012,-1412.04409722,0.00015342,2]
[399323897,1766302257027,-2000.0,0.00015342,2]
[399323898,1766302257038,-2000.0,0.00015342,2]
[399323899,1766302257048,-2000.0,0.00015342,2]
[399323900,1766302257058,-1157.93768915,0.00015342,2]
[399323901,1766302257068,-807.97150429,0.00015342,2]
[399323902,1766302257078,-1065.52565118,0.00015342,2]
[399323903,1766302257090,-1006.84495478,0.00015342,2]
[399323904,1766302257101,-2000.0,0.00015342,2]
[399323905,1766302257111,-2000.0,0.00015342,2]
[399323906,1766302257121,-501.0,0.00015343,2]
[399323907,1766302257132,-3000.0,0.0001537,2]
[399323908,1766302257143,-155.25891694,0.00015464,2]
[399323909,1766302257153,-2500.0,0.00015464,2]
[399323910,1766302257163,-2500.0,0.00015464,2]
[399323911,1766302257174,-2500.0,0.00015464,2]
[399323912,1766302257184,-2500.0,0.00015464,2]
[399323913,1766302257194,-1565.94500214,0.00015464,2]
[399323914,1766302257204,-503.66530057,0.00015464,2]
[399323915,1766302257215,-1351.58994399,0.00015464,2]
[399323916,1766302257224,-2500.0,0.00015464,2]
[399323917,1766302257235,-982.99170798,0.00015464,2]
[399323918,1766302257246,-2500.0,0.00015464,2]
[399323919,1766302257256,-2500.0,0.00015464,2]
[399323920,1766302257266,-2500.0,0.00015464,2]
[399323921,1766302257278,-2500.0,0.00015464,2]
[399323922,1766302257288,-2500.0,0.00015464,2]
[399323923,1766302257299,-2500.0,0.00015464,2]
[399323924,1766302257308,-2500.0,0.00015464,2]
[399323925,1766302257319,-1362.66740419,0.00015464,2]
[399323926,1766302257329,-100000.0,0.00015466,2]
[399323927,1766302257340,-501.0,0.0001548,2]
[399323928,1766302257351,-1000.0,0.00015549,2]
[399323929,1766302257362,-244.0,0.00015549,2]
[399323930,1766302257372,-198.1518487,0.00015616,2]
[399323931,1766302257382,-192.8149694,0.00015616,2]
[399323932,1766302257392,-192.8149694,0.00015616,2]
[399323933,1766302257402,-385.6299388,0.00015616,2]
[399323934,1766302257412,-192.8149694,0.00015616,2]
[399323935,1766302257422,-192.8149694,0.00015616,2]
[399323936,1766302257432,-192.8149694,0.00015616,2]
[399323937,1766302257442,-192.8149694,0.00015616,2]
[399323938,1766302257452,-192.8149694,0.00015616,2]
[399323939,1766302257462,-192.8149694,0.00015616,2]
[399323940,1766302257472,-385.6299388,0.00015616,2]
[399323941,1766302257482,-192.8149694,0.00015616,2]
[399323942,1766302257491,-385.6299388,0.00015616,2]
[399323943,1766302257501,-192.8149694,0.00015616,2]
[399323944,1766302257511,-534.5149338,0.00015616,2]
[399323945,1766302257521,-501.0,0.00015617,2]
[399323946,1766302257532,-865.67906671,0.00015634,2]
[399323947,1766302257542,-1860.31620952,0.00015654,2]
[399323948,1766302257552,-15616.56,0.00015699,2]
[399323949,1766302257562,-500.0,0.00015702,2]
[399323950,1766302257572,-501.0,0.00015754,2]
[399323951,1766302257583,-1500.0,0.00015864,2]
[399323952,1766302257594,-560.0,0.0001589,2]
[399323953,1766302257606,-1140.47290384,0.0001589,2]
[399323954,1766302257618,-2500.0,0.0001589,2]
[399323955,1766302257629,-2500.0,0.0001589,2]
[399323956,1766302257639,-2500.0,0.0001589,2]
[399323957,1766302257649,-2500.0,0.0001589,2]
[399323958,1766302257659,-1077.47083751,0.0001589,2]
[399323959,1766302257669,-2500.0,0.0001589,2]
[399323960,1766302257680,-1738.22956208,0.0001589,2]
[399323961,1766302257690,-2500.0,0.0001589,2]
[399323962,1766302257700,-2500.0,0.0001589,2]
[399323963,1766302257710,-501.0,0.00015891,2]
[399323964,1766302257721,-6584.2639741,0.00015893,2]
[399323965,1766302257733,-5000.0,0.00015893,2]
[399323966,1766302257743,-5000.0,0.00015893,2]
[399323967,1766302257753,-1806.84985447,0.000159,2]
[399323968,1766302257763,-1806.84985442,0.000159,2]
[399323969,1766302257773,-1806.84985442,0.000159,2]
[399323970,1766302257783,-1806.84985442,0.000159,2]
[399323971,1766302257793,-873.33136749,0.0001597,2]
[399323972,1766302257803,-17717.23588056,0.00015987,2]
[399323973,1766302257813,-215.26893603,0.00016,2]